fUSD/lending_fUSD_20240125
["ID","MTS","AMOUNT","RATE_DAILY","PERIOD"]
[312721860,1706188963835,-668.31,0.0005178,31]
[312721861,1706188963868,-500.0,0.0005178,31]
[312721862,1706188963903,-538.49,0.0005178,31]
[312721863,1706188963938,-621.93,0.0005178,31]
[312721864,1706188963974,-919.42,0.0005178,31]
[312721865,1706188964008,-500.0,0.0005178,31]
[312721866,1706188964045,-1198.03,0.0005178,31]
[312721867,1706188964081,-791.89,0.0005178,31]
[312721868,1706188964118,-1243.05,0.0005178,31]
[312721869,1706188964155,-222.61527271,0.0005178,31]
[312721870,1706188964190,-500.0,0.0005178,31]
[312721871,1706188964226,-500.0,0.0005178,31]
[312721872,1706188964261,-500.0,0.0005178,31]
[312721873,1706188964295,-558.35,0.0005178,31]
[312721874,1706188964333,-500.0,0.0005178,31]
[312721875,1706188964367,-500.0,0.0005178,31]
[312721876,1706188964402,-500.0,0.0005178,31]
[312721877,1706188964435,-517.3,0.0005178,31]
[312721878,1706188964471,-720.97,0.0005178,31]
[312721879,1706188964506,-689.62,0.0005178,31]
[312721880,1706188964541,-500.0,0.0005178,31]
[312721881,1706188964578,-2344.2,0.0005178,31]
[312721882,1706188964613,-504.11,0.0005178,31]
[312721883,1706188964648,-500.0,0.0005178,31]
[312721884,1706188964682,-691.44,0.0005178,31]
[312721885,1706188964716,-1094.16,0.0005178,31]
[312721886,1706188964749,-550.56,0.0005178,31]
[312721887,1706188964782,-500.0,0.0005178,31]
[312721888,1706188964816,-900.04,0.0005178,31]
[312721889,1706188964852,-518.45,0.0005178,31]
[312721890,1706188964886,-900.8,0.0005178,31]
[312721891,1706188964922,-500.76,0.0005178,31]
[312721892,1706188964960,-500.0,0.0005178,31]
[312721893,1706188964997,-521.94,0.0005178,31]
[312721894,1706188965033,-500.0,0.0005178,31]
[312721895,1706188965067,-890.01,0.0005178,31]
[312721896,1706188965103,-634.63,0.0005178,31]
[312721897,1706188965139,-500.0,0.0005178,31]
[312721898,1706188965173,-500.0,0.0005178,31]
[312721899,1706188965208,-500.0,0.0005178,31]
[312721900,1706188965242,-1000.0,0.0005178,30]
[312721901,1706188965277,-4298.96,0.0005178,31]
[312721902,1706188965313,-500.0,0.0005178,31]
[312721903,1706188965349,-500.0,0.0005178,31]
[312721904,1706188965385,-500.0,0.0005178,31]
[312721905,1706188965420,-500.0,0.0005178,31]
[312721906,1706188965456,-834.57,0.0005178,31]
[312721907,1706188965490,-500.0,0.0005178,31]
[312721908,1706188965524,-2659.22,0.0005178,31]
[312721909,1706188965557,-500.0,0.0005178,31]
[312721910,1706188965591,-500.0,0.0005178,31]
[312721911,1706188965625,-706.5,0.0005178,31]
[312721912,1706188965660,-502.47,0.0005178,31]
[312721913,1706188965693,-500.0,0.0005178,31]
[312721914,1706188965727,-511.82,0.0005178,31]
[312721915,1706188965761,-735.0,0.0005178,31]
[312721916,1706188965796,-500.0,0.0005178,31]
[312721917,1706188965833,-650.71,0.0005178,31]
[312721918,1706188965872,-515.77,0.0005178,31]
[312721919,1706188965908,-2609.6,0.0005178,31]
[312721920,1706188965944,-1043.27,0.0005178,31]
[312721921,1706188965980,-2040.87,0.0005178,31]
[312721922,1706188966018,-500.0,0.0005178,31]
[312721923,1706188966057,-626.01,0.0005178,31]
[312721924,1706188966091,-500.0,0.0005178,31]
[312721925,1706188966130,-500.0,0.0005178,31]
[312721926,1706188966166,-9999.0,0.000518,30]
[312721927,1706188966202,-9999.0,0.000518,30]
[312721928,1706188966236,-9999.0,0.000518,30]
[312721929,1706188966271,-9999.0,0.000518,30]
[312721930,1706188966306,-9999.0,0.000518,30]
[312721931,1706188966340,-3925.0,0.000518,30]
[312721932,1706188966375,-5820.14300811,0.000519,30]
[312721933,1706188966409,-990.41899025,0.000519,30]
[312721934,1706188966442,-10368.0055428,0.000519,30]
[312721935,1706188966480,-1405.25866728,0.00051903,78]
[312721936,1706188966521,-150.0,0.0005194,30]
[312721937,1706188966559,-150.0,0.0005194,30]
[312721938,1706188966596,-150.0,0.0005194,30]
[312721939,1706188966632,-64241.3404013,0.0005198,30]
[312721940,1706188966667,-2000.0,0.00052,31]
[312721941,1706188966703,-211.20281589,0.00052,30]
[312721942,1706188966735,-1003.75792423,0.00052,30]
[312721943,1706188966769,-300.0,0.00052,30]
[312721944,1706188966804,-150.0,0.00052,30]
[312721945,1706188966838,-200.0,0.00052,30]
[312721946,1706188966873,-1405.25866728,0.00052027,78]
[312721947,1706188966912,-1224.41,0.00052054,31]
[312721948,1706188966945,-551.45,0.00052054,31]
[312721949,1706188966981,-500.0,0.00052054,31]
[312721950,1706188967015,-1626.34,0.00052054,31]
[312721951,1706188967052,-2576.58,0.00052054,31]
[312721952,1706188967087,-500.0,0.00052054,31]
[312721953,1706188967124,-500.0,0.00052054,31]
[312721954,1706188967159,-500.0,0.00052054,31]
[312721955,1706188967194,-500.0,0.00052054,31]
[312721956,1706188967230,-500.0,0.00052054,31]
[312721957,1706188967265,-500.0,0.00052054,31]
[312721958,1706188967300,-500.0,0.00052054,31]
[312721959,1706188967334,-500.0,0.00052054,31]
[312721960,1706188967369,-687.4,0.00052054,31]
[312721961,1706188967404,-500.0,0.00052054,31]
[312721962,1706188967438,-500.0,0.00052054,31]
[312721963,1706188967622,-500.0,0.00052054,31]
[312721964,1706188967658,-624.67,0.00052054,31]
[312721965,1706188967694,-500.0,0.00052054,31]
[312721966,1706188967729,-500.0,0.00052054,31]
[312721967,1706188967767,-500.0,0.00052054,31]
[312721968,1706188967802,-500.0,0.00052054,31]
[312721969,1706188967837,-500.0,0.00052054,31]
[312721970,1706188967873,-500.0,0.00052054,31]
[312721971,1706188967909,-500.0,0.00052054,31]
[312721972,1706188967943,-500.0,0.00052054,31]
[312721973,1706188967977,-500.0,0.00052054,31]
[312721974,1706188968011,-543.47,0.00052054,31]
[312721975,1706188968046,-500.0,0.00052054,31]
[312721976,1706188968085,-500.0,0.00052054,31]
[312721977,1706188968124,-511.97,0.00052054,31]
[312721978,1706188968161,-500.0,0.00052054,31]
[312721979,1706188968198,-500.0,0.00052054,31]
[312721980,1706188968234,-500.0,0.00052054,31]
[312721981,1706188968272,-500.0,0.00052054,31]
[312721982,1706188968309,-500.0,0.00052054,31]
[312721983,1706188968345,-191.49831088,0.00052054,31]
[312721984,1706188968380,-500.0,0.00052054,31]
[312721985,1706188968414,-500.0,0.00052054,31]
[312721986,1706188968450,-500.0,0.00052054,31]
[312721987,1706188968488,-500.0,0.00052054,31]
[312721988,1706188968524,-500.0,0.00052054,31]
[312721989,1706188968563,-520.94,0.00052054,31]
[312721990,1706188968599,-674.26,0.00052054,31]
[312721991,1706188968632,-500.0,0.00052054,31]
[312721992,1706188968666,-345.57712322,0.00052054,31]
[312721993,1706188968699,-500.0,0.00052054,31]
[312721994,1706188968732,-500.0,0.00052054,31]
[312721995,1706188968765,-500.0,0.00052054,31]
[312721996,1706188968798,-500.0,0.00052054,31]
[312721997,1706188968833,-500.0,0.00052054,31]
[312721998,1706188968869,-500.0,0.00052054,31]
[312721999,1706188968912,-500.0,0.00052054,31]
[312722000,1706188968950,-500.0,0.00052054,31]
[312722001,1706188968986,-500.0,0.00052054,31]
[312722002,1706188969021,-500.0,0.00052054,31]
[312722003,1706188969057,-500.0,0.00052054,31]
[312722004,1706188969094,-500.0,0.00052054,31]
[312722005,1706188969133,-500.0,0.00052054,31]
[312722006,1706188969170,-500.0,0.00052054,31]
[312722007,1706188969208,-500.0,0.00052054,31]
[312722008,1706188969244,-622.82,0.00052054,31]
[312722009,1706188969279,-848.34,0.00052054,31]
[312722010,1706188969315,-500.0,0.00052054,31]
[312722011,1706188969351,-500.0,0.00052054,31]
[312722012,1706188969387,-500.0,0.00052054,31]
[312722013,1706188969424,-692.14,0.00052054,31]
[312722014,1706188969457,-203.7141517,0.00052054,31]
[312722015,1706188969494,-500.0,0.00052054,31]
[312722016,1706188969527,-527.58228268,0.00052054,31]
[312722017,1706188969560,-500.0,0.00052054,31]
[312722018,1706188969595,-500.0,0.00052054,31]
[312722019,1706188969630,-531.51,0.00052054,31]
[312722020,1706188969665,-723.91,0.00052054,31]
[312722021,1706188969702,-500.0,0.00052054,31]
[312722022,1706188969738,-500.0,0.00052054,31]
[312722023,1706188969773,-500.0,0.00052054,31]
[312722024,1706188969808,-500.0,0.00052054,31]
[312722025,1706188969842,-500.0,0.00052054,31]
[312722026,1706188969880,-500.0,0.00052054,31]
[312722027,1706188969917,-500.0,0.00052054,31]
[312722028,1706188969954,-500.0,0.00052054,31]
[312722029,1706188969990,-500.0,0.00052054,31]
[312722030,1706188970028,-500.0,0.00052054,31]
[312722031,1706188970063,-500.0,0.00052054,31]
[312722032,1706188970107,-500.0,0.00052054,31]
[312722033,1706188970152,-602.10841153,0.00052054,31]
[312722034,1706188970194,-500.0,0.00052054,31]
[312722035,1706188970234,-500.0,0.00052054,31]
[312722036,1706188970272,-500.0,0.00052054,31]
[312722037,1706188970308,-518.42,0.00052054,31]
[312722038,1706188970344,-500.0,0.00052054,31]
[312722039,1706188970381,-556.54,0.00052054,31]
[312722040,1706188970416,-500.0,0.00052054,31]
[312722041,1706188970452,-500.0,0.00052054,31]
[312722042,1706188970488,-500.0,0.00052054,31]
[312722043,1706188970524,-500.0,0.00052054,31]
[312722044,1706188970561,-500.0,0.00052054,31]
[312722045,1706188970597,-500.0,0.00052054,31]
[312722046,1706188970631,-649.66448468,0.00052054,31]
[312722047,1706188970665,-500.0,0.00052054,31]
[312722048,1706188970700,-250.0,0.00052054,31]
[312722049,1706188970736,-500.0,0.00052054,31]
[312722050,1706188970772,-500.0,0.00052054,31]
[312722051,1706188970807,-568.52,0.00052054,31]
[312722052,1706188970841,-653.44,0.00052054,31]
[312722053,1706188970877,-500.0,0.00052054,31]
[312722054,1706188970911,-500.0,0.00052054,31]
[312722055,1706188970949,-500.0,0.00052054,31]
[312722056,1706188970983,-500.0,0.00052054,31]
[312722057,1706188971018,-500.0,0.00052054,31]
[312722058,1706188971054,-500.0,0.00052054,31]
[312722059,1706188971090,-500.0,0.00052054,31]
[312722060,1706188971129,-500.0,0.00052054,31]
[312722061,1706188971165,-523.72,0.00052054,31]
[312722062,1706188971203,-628.96,0.00052054,31]
[312722063,1706188971240,-500.0,0.00052054,31]
[312722064,1706188971277,-500.0,0.00052054,31]
[312722065,1706188971314,-899.54,0.00052054,31]
[312722066,1706188971349,-500.0,0.00052054,31]
[312722067,1706188971539,-500.0,0.00052054,31]
[312722068,1706188971579,-500.0,0.00052054,31]
[312722069,1706188971616,-500.0,0.00052054,31]
[312722070,1706188971651,-500.0,0.00052054,31]
[312722071,1706188971686,-500.0,0.00052054,31]
[312722072,1706188971721,-500.0,0.00052054,31]
[312722073,1706188971757,-500.0,0.00052054,31]
[312722074,1706188971792,-500.0,0.00052054,31]
[312722075,1706188971827,-500.0,0.00052054,31]
[312722076,1706188971862,-500.0,0.00052054,31]
[312722077,1706188971896,-528.11,0.00052054,31]
[312722078,1706188971931,-500.0,0.00052054,31]
[312722079,1706188971968,-500.0,0.00052054,31]
[312722080,1706188972005,-1037.12,0.00052054,31]
[312722081,1706188972042,-500.0,0.00052054,31]
[312722082,1706188972078,-500.0,0.00052054,31]
[312722083,1706188972114,-500.0,0.00052054,31]
[312722084,1706188972151,-500.0,0.00052054,31]
[312722085,1706188972186,-500.0,0.00052054,31]
[312722086,1706188972221,-500.0,0.00052054,31]
[312722087,1706188972254,-500.0,0.00052054,31]
[312722088,1706188972288,-500.0,0.00052054,31]
[312722089,1706188972323,-500.0,0.00052054,31]
[312722090,1706188972357,-225.28148622,0.00052054,31]
[312722091,1706188972391,-500.0,0.00052054,31]
[312722092,1706188972426,-500.0,0.00052054,31]
[312722093,1706188972464,-500.0,0.00052054,31]
[312722094,1706188972501,-500.0,0.00052054,31]
[312722095,1706188972537,-500.0,0.00052054,31]
[312722096,1706188972573,-500.0,0.00052054,31]
[312722097,1706188972607,-500.0,0.00052054,31]
[312722098,1706188972641,-500.0,0.00052054,31]
[312722099,1706188972676,-500.0,0.00052054,31]
[312722100,1706188972713,-500.0,0.00052054,31]
[312722101,1706188972747,-500.0,0.00052054,31]
[312722102,1706188972781,-500.0,0.00052054,31]
[312722103,1706188972816,-500.0,0.00052054,31]
[312722104,1706188972850,-500.0,0.00052054,31]
[312722105,1706188972886,-500.0,0.00052054,31]
[312722106,1706188972922,-500.0,0.00052054,31]
[312722107,1706188972960,-191.08314781,0.00052054,31]
[312722108,1706188972998,-500.0,0.00052054,31]
[312722109,1706188973034,-500.0,0.00052054,31]
[312722110,1706188973070,-500.0,0.00052054,31]
[312722111,1706188973106,-500.0,0.00052054,31]
[312722112,1706188973144,-500.0,0.00052054,31]
[312722113,1706188973180,-500.0,0.00052054,31]
[312722114,1706188973217,-533.46,0.00052054,31]
[312722115,1706188973258,-501.9,0.00052054,31]
[312722116,1706188973294,-1106.47,0.00052054,31]
[312722117,1706188973330,-500.0,0.00052054,31]
[312722118,1706188973364,-500.0,0.00052054,31]
[312722119,1706188973400,-500.0,0.00052054,31]
[312722120,1706188973435,-500.0,0.00052054,31]
[312722121,1706188973469,-500.0,0.00052054,31]
[312722122,1706188973506,-500.0,0.00052054,31]
[312722123,1706188973543,-3932.94,0.00052054,30]
[312722124,1706188973581,-500.0,0.00052054,31]
[312722125,1706188973615,-553.31,0.00052054,31]
[312722126,1706188973651,-181.41211533,0.00052054,31]
[312722127,1706188973685,-631.25659636,0.00052054,31]
[312722128,1706188973719,-500.0,0.00052054,31]
[312722129,1706188973753,-1880.79,0.00052054,31]
[312722130,1706188973805,-582.46,0.00052054,31]
[312722131,1706188973852,-500.0,0.00052054,31]
[312722132,1706188973898,-500.0,0.00052054,31]
[312722133,1706188973943,-554.27680931,0.00052054,31]
[312722134,1706188973989,-500.0,0.00052054,31]
[312722135,1706188974035,-3956.45,0.00052054,31]
[312722136,1706188974081,-500.0,0.00052054,31]
[312722137,1706188974134,-500.0,0.00052054,31]
[312722138,1706188974178,-394.07990586,0.00052054,31]
[312722139,1706188974224,-500.0,0.00052054,31]
[312722140,1706188974270,-500.0,0.00052054,31]
[312722141,1706188974310,-500.0,0.00052054,31]
[312722142,1706188974354,-500.0,0.00052054,31]
[312722143,1706188974395,-500.0,0.00052054,31]
[312722144,1706188974440,-500.0,0.00052054,31]
[312722145,1706188974483,-500.0,0.00052054,31]
[312722146,1706188974529,-500.0,0.00052054,31]
[312722147,1706188974572,-678.41,0.00052054,31]
[312722148,1706188974616,-500.0,0.00052054,31]
[312722149,1706188974661,-500.0,0.00052054,31]
[312722150,1706188974705,-500.0,0.00052054,31]
[312722151,1706188974764,-500.0,0.00052054,31]
[312722152,1706188974819,-500.0,0.00052054,31]
[312722153,1706188974870,-500.0,0.00052054,31]
[312722154,1706188974918,-500.0,0.00052054,31]
[312722155,1706188974965,-549.93,0.00052054,31]
[312722156,1706188975012,-500.0,0.00052054,31]
[312722157,1706188975058,-679.41,0.00052054,31]
[312722158,1706188975105,-500.0,0.00052054,31]
[312722159,1706188975149,-509.93,0.00052054,31]
[312722160,1706188975194,-500.0,0.00052054,31]
[312722161,1706188975239,-500.0,0.00052054,31]
[312722162,1706188975283,-500.0,0.00052054,31]
[312722163,1706188975324,-192.2,0.00052054,31]
[312722164,1706188975364,-500.0,0.00052054,31]
[312722165,1706188975408,-500.0,0.00052054,31]
[312722166,1706188975459,-500.0,0.00052054,31]
[312722167,1706188975510,-500.0,0.00052054,31]
[312722168,1706188975560,-500.0,0.00052054,31]
[312722169,1706188975606,-1090.07,0.00052054,31]
[312722170,1706188975651,-500.0,0.00052054,31]
[312722171,1706188975697,-521.96,0.00052054,31]
[312722172,1706188975740,-684.55,0.00052054,31]
[312722173,1706188975783,-500.0,0.00052054,31]
[312722174,1706188975829,-500.0,0.00052054,31]
[312722175,1706188975879,-500.0,0.00052054,31]
[312722176,1706188975928,-500.0,0.00052054,31]
[312722177,1706188975978,-500.0,0.00052054,31]
[312722178,1706188976026,-500.0,0.00052054,31]
[312722179,1706188976073,-557.35,0.00052054,31]
[312722180,1706188976120,-500.0,0.00052054,31]
[312722181,1706188976167,-500.0,0.00052054,31]
[312722182,1706188976216,-500.0,0.00052054,31]
[312722183,1706188976263,-753.41,0.00052054,31]
[312722184,1706188976311,-500.0,0.00052054,31]
[312722185,1706188976356,-500.0,0.00052054,31]
[312722186,1706188976401,-500.0,0.00052054,31]
[312722187,1706188976450,-500.0,0.00052054,31]
[312722188,1706188976494,-500.0,0.00052054,31]
[312722189,1706188976536,-500.0,0.00052054,31]
[312722190,1706188976579,-761.84,0.00052054,31]
[312722191,1706188976620,-500.0,0.00052054,31]
[312722192,1706188976663,-507.48,0.00052054,31]
[312722193,1706188976972,-500.0,0.00052054,31]
[312722194,1706188977015,-500.0,0.00052054,31]
[312722195,1706188977051,-500.0,0.00052054,31]
[312722196,1706188977088,-500.0,0.00052054,31]
[312722197,1706188977126,-1413.36,0.00052054,31]
[312722198,1706188977163,-1123.79,0.00052054,31]
[312722199,1706188977199,-500.0,0.00052054,31]
[312722200,1706188977237,-500.0,0.00052054,31]
[312722201,1706188977276,-500.0,0.00052054,31]
[312722202,1706188977313,-2527.99,0.00052054,31]
[312722203,1706188977349,-500.0,0.00052054,31]
[312722204,1706188977388,-2252.57,0.00052054,31]
[312722205,1706188977425,-500.0,0.00052054,31]
[312722206,1706188977461,-500.0,0.00052054,31]
[312722207,1706188977503,-4785.39,0.00052054,31]
[312722208,1706188977540,-681.67,0.00052054,31]
[312722209,1706188977578,-757.11,0.00052054,31]
[312722210,1706188977613,-500.0,0.00052054,31]
[312722211,1706188977647,-500.0,0.00052054,31]
[312722212,1706188977682,-578.13,0.00052054,31]
[312722213,1706188977716,-500.0,0.00052054,31]
[312722214,1706188977753,-1195.74,0.00052054,31]
[312722215,1706188977792,-646.08,0.00052054,31]
[312722216,1706188977828,-500.0,0.00052054,31]
[312722217,1706188977864,-500.0,0.00052054,31]
[312722218,1706188977913,-668.94,0.00052054,31]
[312722219,1706188977949,-500.0,0.00052054,31]
[312722220,1706188977986,-501.5013888,0.00052054,31]
[312722221,1706188978024,-500.0,0.00052054,31]
[312722222,1706188978061,-500.0,0.00052054,31]
[312722223,1706188978097,-500.0,0.00052054,31]
[312722224,1706188978134,-624.44,0.00052054,31]
[312722225,1706188978169,-500.0,0.00052054,31]
[312722226,1706188978205,-500.0,0.00052054,31]
[312722227,1706188978241,-500.0,0.00052054,31]
[312722228,1706188978278,-500.0,0.00052054,31]
[312722229,1706188978312,-664.74,0.00052054,31]
[312722230,1706188978346,-500.0,0.00052054,31]
[312722231,1706188978380,-552.93,0.00052054,31]
[312722232,1706188978416,-500.0,0.00052054,31]
[312722233,1706188978451,-569.49,0.00052054,31]
[312722234,1706188978486,-651.62,0.00052054,31]
[312722235,1706188978520,-538.01,0.00052054,31]
[312722236,1706188978553,-567.83,0.00052054,31]
[312722237,1706188978587,-3543.8,0.00052054,31]
[312722238,1706188978622,-500.0,0.00052054,31]
[312722239,1706188978657,-500.0,0.00052054,31]
[312722240,1706188978691,-500.0,0.00052054,31]
[312722241,1706188978726,-500.0,0.00052054,31]
[312722242,1706188978759,-500.0,0.00052054,31]
[312722243,1706188978792,-500.0,0.00052054,31]
[312722244,1706188978824,-500.0,0.00052054,31]
[312722245,1706188978864,-594.79,0.00052054,31]
[312722246,1706188978900,-500.0,0.00052054,31]
[312722247,1706188978945,-502.34,0.00052054,31]
[312722248,1706188978981,-611.77,0.00052054,31]
[312722249,1706188979019,-513.18,0.00052054,31]
[312722250,1706188979057,-549.63,0.00052054,31]
[312722251,1706188979093,-591.91,0.00052054,31]
[312722252,1706188979129,-500.0,0.00052054,31]
[312722253,1706188979167,-500.0,0.00052054,31]
[312722254,1706188979204,-500.0,0.00052054,31]
[312722255,1706188979241,-892.35,0.00052054,31]
[312722256,1706188979277,-500.0,0.00052054,31]
[312722257,1706188979311,-565.29,0.00052054,31]
[312722258,1706188979346,-500.0,0.00052054,31]
[312722259,1706188979381,-500.0,0.00052054,31]
[312722260,1706188979417,-696.05,0.00052054,31]
[312722261,1706188979451,-500.0,0.00052054,31]
[312722262,1706188979484,-503.96,0.00052054,31]
[312722263,1706188979517,-500.0,0.00052054,31]
[312722264,1706188979551,-1045.18,0.00052054,31]
[312722265,1706188979585,-500.0,0.00052054,31]
[312722266,1706188979618,-500.0,0.00052054,31]
[312722267,1706188979651,-505.83,0.00052054,31]
[312722268,1706188979684,-569.95,0.00052054,31]
[312722269,1706188979717,-616.19,0.00052054,31]
[312722270,1706188979751,-500.0,0.00052054,31]
[312722271,1706188979786,-500.0,0.00052054,31]
[312722272,1706188979824,-500.0,0.00052054,31]
[312722273,1706188979859,-1085.14,0.00052054,31]
[312722274,1706188979895,-740.01,0.00052054,31]
[312722275,1706188979931,-8322.88,0.00052054,31]
[312722276,1706188979968,-658.74,0.00052054,31]
[312722277,1706188980004,-500.0,0.00052054,31]
[312722278,1706188980040,-500.0,0.00052054,31]
[312722279,1706188980074,-728.72,0.00052054,31]
[312722280,1706188980110,-1773.53,0.00052054,31]
[312722281,1706188980146,-1240.04,0.00052054,31]
[312722282,1706188980181,-599.04,0.00052054,31]
[312722283,1706188980218,-808.35,0.00052054,31]
[312722284,1706188980255,-605.14,0.00052054,31]
[312722285,1706188980293,-500.0,0.00052054,31]
[312722286,1706188980327,-500.0,0.00052054,31]
[312722287,1706188980360,-880.58,0.00052054,31]
[312722288,1706188980394,-903.12,0.00052054,31]
[312722289,1706188980428,-545.45,0.00052054,31]
[312722290,1706188980462,-500.0,0.00052054,31]
[312722291,1706188980497,-500.0,0.00052054,31]
[312722292,1706188980531,-3577.61,0.00052054,31]
[312722293,1706188980723,-685.58,0.00052054,31]
[312722294,1706188980761,-562.88,0.00052054,31]
[312722295,1706188980796,-952.48,0.00052054,31]
[312722296,1706188980831,-500.0,0.00052054,31]
[312722297,1706188980866,-500.0,0.00052054,31]
[312722298,1706188980899,-818.92,0.00052054,31]
[312722299,1706188980933,-567.03,0.00052054,31]
[312722300,1706188980968,-500.0,0.00052054,31]
[312722301,1706188981002,-702.34,0.00052054,31]
[312722302,1706188981037,-500.0,0.00052054,31]
[312722303,1706188981072,-529.03,0.00052054,31]
[312722304,1706188981107,-506.1,0.00052054,31]
[312722305,1706188981142,-919.78,0.00052054,31]
[312722306,1706188981175,-682.14,0.00052054,31]
[312722307,1706188981210,-500.0,0.00052054,31]
[312722308,1706188981245,-500.0,0.00052054,31]
[312722309,1706188981280,-500.0,0.00052054,31]
[312722310,1706188981315,-1207.59,0.00052054,31]
[312722311,1706188981350,-500.0,0.00052054,31]
[312722312,1706188981389,-575.64,0.00052054,31]
[312722313,1706188981427,-500.0,0.00052054,31]
[312722314,1706188981466,-500.0,0.00052054,31]
[312722315,1706188981505,-500.0,0.00052054,31]
[312722316,1706188981542,-1305.94,0.00052054,31]
[312722317,1706188981580,-945.14,0.00052054,31]
[312722318,1706188981613,-668.31,0.00052054,31]
[312722319,1706188981646,-500.0,0.00052054,31]
[312722320,1706188981681,-538.49,0.00052054,31]
[312722321,1706188981716,-621.93,0.00052054,31]
[312722322,1706188981751,-919.42,0.00052054,31]
[312722323,1706188981784,-500.0,0.00052054,31]
[312722324,1706188981817,-1198.03,0.00052054,31]
[312722325,1706188981851,-791.89,0.00052054,31]
[312722326,1706188981884,-500.0,0.00052054,31]
[312722327,1706188981918,-500.0,0.00052054,31]
[312722328,1706188981952,-1243.05,0.00052054,31]
[312722329,1706188981987,-500.0,0.00052054,31]
[312722330,1706188982021,-558.35,0.00052054,31]
[312722331,1706188982056,-485.07252691,0.00052054,31]
[312722332,1706188982093,-500.0,0.00052054,31]
[312722333,1706188982133,-517.3,0.00052054,31]
[312722334,1706188982170,-500.0,0.00052054,31]
[312722335,1706188982207,-720.97,0.00052054,31]
[312722336,1706188982244,-689.62,0.00052054,31]
[312722337,1706188982282,-500.0,0.00052054,31]
[312722338,1706188982317,-2344.2,0.00052054,31]
[312722339,1706188982354,-504.11,0.00052054,31]
[312722340,1706188982390,-500.0,0.00052054,31]
[312722341,1706188982425,-691.44,0.00052054,31]
[312722342,1706188982463,-1094.16,0.00052054,31]
[312722343,1706188982505,-550.56,0.00052054,31]
[312722344,1706188982540,-500.0,0.00052054,31]
[312722345,1706188982574,-900.04,0.00052054,31]
[312722346,1706188982610,-518.45,0.00052054,31]
[312722347,1706188982645,-900.8,0.00052054,31]
[312722348,1706188982679,-500.76,0.00052054,31]
[312722349,1706188982715,-500.0,0.00052054,31]
[312722350,1706188982753,-521.94,0.00052054,31]
[312722351,1706188982788,-500.0,0.00052054,31]
[312722352,1706188982823,-890.01,0.00052054,31]
[312722353,1706188982859,-634.63,0.00052054,31]
[312722354,1706188982893,-647.6664009,0.00052054,31]
[312722355,1706188982928,-500.0,0.00052054,31]
[312722356,1706188982966,-500.0,0.00052054,31]
[312722357,1706188983001,-1000.0,0.00052054,30]
[312722358,1706188983040,-4298.96,0.00052054,31]
[312722359,1706188983079,-500.0,0.00052054,31]